bitfinex/quotes_BTCUSD_20240605
["timestamp","ask_amount","ask_price","bid_price","bid_amount"]
[1717610646895,24.62017514,71717.0,71716.0,0.65747538]
[1717610647095,24.62017514,71717.0,71716.0,0.46758583]
[1717610647503,24.62017514,71717.0,71716.0,0.22814783]
[1717610647504,24.68737514,71717.0,71716.0,0.22814783]
[1717610647685,24.62017514,71717.0,71716.0,0.36758583]
[1717610648120,24.62490879,71717.0,71716.0,0.22814783]
[1717610648293,24.62490879,71717.0,71716.0,0.12814783]
[1717610648757,24.64174392,71717.0,71716.0,0.12814783]
[1717610649149,24.78616285,71717.0,71716.0,0.036746]
[1717610649381,24.97616285,71717.0,71716.0,0.036746]
[1717610649587,24.97616285,71717.0,71716.0,0.12814783]
[1717610649788,25.01787826,71717.0,71716.0,0.036746]
[1717610650217,25.03873596,71717.0,71716.0,0.036746]
[1717610650396,24.97616285,71717.0,71716.0,0.036746]
[1717610650634,25.01783578,71717.0,71716.0,0.036746]
[1717610650817,25.11559885,71717.0,71716.0,0.036746]
[1717610651510,25.11559885,71717.0,71705.0,0.000946]
[1717610651511,0.00473365,71706.0,71705.0,0.000946]
[1717610651813,0.21635258,71706.0,71705.0,0.000946]
[1717610652056,0.21635258,71706.0,71692.0,0.1]
[1717610652057,0.19,71700.0,71696.0,0.09140183]
[1717610652271,0.07231677,71706.0,71705.0,0.33086183]
[1717610652492,0.1301,71706.0,71705.0,0.33086183]
[1717610652690,0.2058,71706.0,71705.0,0.33086183]
[1717610652897,0.2058,71706.0,71705.0,0.19140183]
[1717610653661,0.2058,71706.0,71705.0,0.26369098]
[1717610654301,0.2058,71706.0,71705.0,0.43831418]
[1717610654794,0.2058,71706.0,71705.0,0.09140183]
[1717610654968,0.2058,71706.0,71705.0,0.19542131]
[1717610654969,0.16741893,71706.0,71705.0,0.19542131]
[1717610655454,0.16741893,71706.0,71705.0,0.28682314]
[1717610655659,0.37321893,71706.0,71705.0,0.28682314]
[1717610657206,0.37321893,71706.0,71705.0,0.19542131]
[1717610657207,0.91267693,71706.0,71705.0,0.19542131]
[1717610657402,0.93805373,71706.0,71705.0,0.19542131]
[1717610658049,0.91267693,71706.0,71705.0,0.19542131]
[1717610658194,1.08077693,71706.0,71705.0,0.19542131]
[1717610658396,0.77321893,71706.0,71705.0,0.19542131]
[1717610658895,0.37321893,71706.0,71705.0,0.19542131]
[1717610659307,0.1301,71714.0,71706.0,0.1746232]
[1717610659519,0.1301,71714.0,71705.0,0.19542131]
[1717610659520,0.14441893,71713.0,71705.0,0.28682314]
[1717610659735,0.081,71712.0,71705.0,0.28682314]
[1717610659939,0.4011,71706.0,71705.0,0.19542131]
[1717610660190,0.68497693,71706.0,71705.0,0.19542131]
[1717610660397,0.87845373,71706.0,71705.0,0.19542131]
[1717610660605,0.90145373,71706.0,71705.0,0.19542131]
[1717610661544,0.90145373,71706.0,71686.0,0.09140183]
[1717610661545,0.2076,71692.0,71686.0,0.09140183]
[1717610661746,0.1301,71690.0,71679.0,0.4141322]
[1717610661949,0.2076,71688.0,71679.0,0.1]
[1717610662305,0.19,71684.0,71665.0,0.20861535]
[1717610662468,0.2124,71682.0,71665.0,0.20861535]
[1717610662792,0.139509,71680.0,71665.0,0.20861535]
[1717610662979,0.1301,71678.0,71665.0,0.20861535]
[1717610663189,0.15139548,71677.0,71665.0,0.20861535]
[1717610663406,0.19,71673.0,71665.0,0.20861535]
[1717610663639,0.16741893,71672.0,71665.0,0.20861535]
[1717610664481,0.2129,71671.0,71665.0,0.20861535]
[1717610664656,0.16741893,71670.0,71665.0,0.20861535]
[1717610667039,0.00697719,71669.0,71665.0,0.20861535]
[1717610667239,0.16741893,71668.0,71665.0,0.20861535]
[1717610668055,0.30695193,71668.0,71665.0,0.20861535]
[1717610668489,0.16741893,71668.0,71665.0,0.20861535]
[1717610668720,0.00697721,71667.0,71665.0,0.20861535]
[1717610668932,0.16741893,71666.0,71665.0,0.20861535]
[1717610670028,0.30695493,71666.0,71665.0,0.20861535]
[1717610670766,0.51895493,71666.0,71665.0,0.20861535]
[1717610670983,0.71895493,71666.0,71665.0,0.20861535]
[1717610671416,1.11895493,71666.0,71665.0,0.20861535]
[1717610671838,0.91895493,71666.0,71665.0,0.20861535]
[1717610672275,0.37941893,71666.0,71665.0,0.20861535]
[1717610674217,0.71074875,71666.0,71665.0,0.20861535]
[1717610674664,0.68218475,71666.0,71665.0,0.20861535]
[1717610675157,0.68218475,71666.0,71665.0,0.20956135]
[1717610676519,0.70518475,71666.0,71665.0,0.20956135]
[1717610677168,0.70658475,71666.0,71665.0,0.20956135]
[1717610680120,0.88600368,71666.0,71665.0,0.20956135]
[1717610680766,1.08565675,71666.0,71665.0,0.20956135]
[1717610680964,0.80658475,71666.0,71665.0,0.20956135]
[1717610682553,0.97468475,71666.0,71665.0,0.20956135]
[1717610683547,1.33317568,71666.0,71665.0,0.20956135]
[1717610685566,1.61224768,71666.0,71665.0,0.20956135]
[1717610685867,1.75736555,71666.0,71665.0,0.20956135]
[1717610686277,1.85736555,71666.0,71665.0,0.20956135]
[1717610686695,1.86536555,71666.0,71665.0,0.21056135]
[1717610686888,1.85736555,71666.0,71665.0,0.20956135]
[1717610687215,2.24543755,71666.0,71665.0,0.17419134]
[1717610687411,2.24543755,71666.0,71665.0,0.17519134]
[1717610687412,2.25443755,71666.0,71665.0,0.17519134]
[1717610687657,2.24543755,71666.0,71665.0,0.17419134]
[1717610687834,2.25443755,71666.0,71665.0,0.17519134]
[1717610688045,2.24543755,71666.0,71665.0,0.17419134]
[1717610688244,2.23643755,71666.0,71665.0,0.17319134]
[1717610689648,2.25043755,71666.0,71665.0,0.17419134]
[1717610689858,2.25043755,71666.0,71651.0,0.002]
[1717610689859,0.57941893,71652.0,71651.0,0.002]
[1717610690059,1.90415286,71652.0,71651.0,0.002]
[1717610690695,1.91365686,71652.0,71651.0,0.002]
[1717610691739,1.91465686,71652.0,71651.0,0.002]
[1717610691958,1.91865686,71652.0,71651.0,0.002]
[1717610692158,2.43890073,71652.0,71651.0,0.002]
[1717610692363,2.43890073,71652.0,71646.0,0.000946]
[1717610692364,0.97728393,71647.0,71646.0,0.000946]
[1717610692573,1.14610286,71647.0,71646.0,0.000946]
[1717610693122,1.57204886,71647.0,71646.0,0.000946]
[1717610693365,1.67204886,71647.0,71646.0,0.000946]
[1717610693577,1.81716673,71647.0,71646.0,0.000946]
[1717610694183,1.82916673,71647.0,71646.0,0.000946]
[1717610694703,1.81716673,71647.0,71646.0,0.000946]
[1717610694879,1.99626673,71647.0,71646.0,0.000946]
[1717610695308,1.98526673,71647.0,71646.0,0.000946]
[1717610695741,1.99926673,71647.0,71646.0,0.000946]
[1717610695951,1.99926673,71647.0,71644.0,0.009504]
[1717610695952,1.12410393,71645.0,71644.0,0.009504]
[1717610696156,0.86941893,71634.0,71633.0,0.000946]
[1717610696364,1.90432986,71634.0,71633.0,0.000946]
[1717610697240,1.73622986,71634.0,71633.0,0.000946]
[1717610697456,1.90432986,71634.0,71633.0,0.000946]
[1717610698103,1.99076317,71634.0,71633.0,0.000946]
[1717610698340,1.98776317,71634.0,71633.0,0.000946]
[1717610698560,1.73822986,71634.0,71633.0,0.000946]
[1717610698772,1.82991093,71634.0,71633.0,0.000946]
[1717610698978,1.90932986,71634.0,71633.0,0.000946]
[1717610699404,1.90732986,71634.0,71633.0,0.000946]
[1717610699833,1.91132986,71634.0,71633.0,0.000946]
[1717610700047,2.43564473,71634.0,71633.0,0.000946]
[1717610700271,2.43164473,71634.0,71633.0,0.000946]
[1717610700486,2.15104773,71634.0,71633.0,0.000946]
[1717610700721,2.15604773,71634.0,71633.0,0.000946]
[1717610701199,2.15204773,71634.0,71633.0,0.000946]
[1717610701604,2.14804773,71634.0,71633.0,0.000946]
[1717610702028,2.15604773,71634.0,71633.0,0.001946]
[1717610702240,2.14804773,71634.0,71633.0,0.000946]
[1717610702651,2.16204773,71634.0,71633.0,0.001946]
[1717610702914,2.17004773,71634.0,71633.0,0.001946]
[1717610703154,1.89085073,71634.0,71633.0,0.001946]
[1717610703289,2.16204773,71634.0,71633.0,0.001946]
[1717610703505,1.71475073,71634.0,71633.0,0.001946]
[1717610703710,2.17888359,71634.0,71633.0,0.001946]
[1717610704103,2.17888359,71634.0,71633.0,0.000946]
[1717610704525,2.17888359,71634.0,71633.0,0.001946]
[1717610704697,2.16488359,71634.0,71633.0,0.000946]
[1717610705186,2.17888359,71634.0,71633.0,0.001946]
[1717610705592,2.16488359,71634.0,71633.0,0.000946]
[1717610706040,2.17888359,71634.0,71633.0,0.000946]
[1717610706673,2.19288359,71634.0,71633.0,0.001946]
[1717610707523,0.97742893,71632.0,71631.0,0.011504]
[1717610707739,0.97742893,71632.0,71616.0,0.089304]
[1717610707740,1.28826693,71625.0,71616.0,0.089304]
[1717610707978,1.62378586,71625.0,71616.0,0.089304]
[1717610709122,1.62778586,71625.0,71616.0,0.089304]
[1717610709333,1.54836693,71625.0,71616.0,0.089304]
[1717610709540,1.62378586,71625.0,71616.0,0.089304]
[1717610709751,1.55236693,71625.0,71624.0,0.21807573]
[1717610709960,1.68708609,71625.0,71624.0,0.21807573]
[1717610710612,0.35041893,71625.0,71624.0,0.45037573]
[1717610710825,0.206,71625.0,71624.0,0.5709568]
[1717610711084,0.4,71633.0,71625.0,0.2323]
[1717610711324,0.4,71633.0,71627.0,0.0771]
[1717610711325,0.13961,71628.0,71627.0,0.0771]
[1717610711531,0.14441893,71628.0,71627.0,0.2287]
[1717610711739,0.28402893,71628.0,71627.0,0.2287]
[1717610712382,0.28402893,71628.0,71627.0,0.1516]
[1717610712595,0.28402893,71628.0,71627.0,0.1536]
[1717610712806,0.30702893,71628.0,71627.0,0.1536]
[1717610713010,0.30702893,71628.0,71627.0,0.1516]
[1717610713430,0.30702893,71628.0,71627.0,0.1536]
[1717610713643,0.30702893,71628.0,71627.0,0.1516]
[1717610713854,0.30702893,71628.0,71627.0,0.1526]
[1717610714494,0.30702893,71628.0,71627.0,0.1516]
[1717610715120,0.30702893,71628.0,71627.0,0.1536]
[1717610715550,0.30702893,71628.0,71627.0,0.1516]
[1717610715751,0.30702893,71628.0,71627.0,0.1536]
[1717610715949,0.30702893,71628.0,71627.0,0.1546]
[1717610716399,0.30702893,71628.0,71627.0,0.1526]
[1717610716614,0.30702893,71628.0,71627.0,0.1536]
[1717610716827,0.30702893,71628.0,71627.0,0.1526]
[1717610717254,0.30702893,71628.0,71627.0,0.1546]
[1717610717487,0.30702893,71628.0,71627.0,0.1536]
[1717610717697,0.30702893,71628.0,71627.0,0.1546]
[1717610718542,0.30702893,71628.0,71627.0,0.1526]
[1717610718959,0.30702893,71628.0,71627.0,0.1546]
[1717610719176,0.30702893,71628.0,71627.0,0.1536]
[1717610719397,0.14441893,71628.0,71627.0,0.2364]
[1717610719606,0.4,71633.0,71629.0,0.1529]
[1717610719821,0.4,71633.0,71631.0,0.1529]
[1717610719822,0.14441893,71632.0,71631.0,0.1529]
[1717610720096,0.14441893,71632.0,71631.0,0.2357]
[1717610722478,0.14441893,71632.0,71631.0,0.2367]
[1717610722710,0.14441893,71632.0,71631.0,0.2387]
[1717610723019,0.14441893,71632.0,71631.0,0.2357]
[1717610723173,0.1681,71643.0,71632.0,0.0827]
[1717610723174,0.19,71643.0,71632.0,0.0827]
[1717610723382,0.14441893,71642.0,71634.0,0.0827]
[1717610723584,0.14441893,71642.0,71636.0,0.0823]
[1717610723947,0.14441893,71642.0,71637.0,0.1514]
[1717610724152,0.14441893,71642.0,71639.0,0.1514]
[1717610724560,0.14441893,71642.0,71640.0,0.0823]
[1717610724770,0.023,71641.0,71640.0,0.0823]
[1717610725613,0.16741893,71641.0,71640.0,0.0823]
[1717610725827,0.16741893,71641.0,71631.0,0.002]
[1717610726024,0.19,71634.0,71631.0,0.001]
[1717610726672,0.19,71634.0,71625.0,0.376715]
[1717610727134,0.19,71634.0,71631.0,0.002]
[1717610727350,0.15139973,71633.0,71631.0,0.002]
[1717610727564,0.15139973,71633.0,71625.0,0.2371]
[1717610727565,0.19,71626.0,71625.0,0.2371]
[1717610728462,0.213,71626.0,71625.0,0.2371]
[1717610728640,0.213,71626.0,71624.0,0.21707573]
[1717610730012,0.213,71626.0,71625.0,0.002]
[1717610730465,0.213,71626.0,71624.0,0.21707573]
[1717610730678,0.35741893,71626.0,71624.0,0.22007573]
[1717610731118,0.35741893,71626.0,71624.0,0.21807573]
[1717610731316,0.35741893,71626.0,71624.0,0.21707573]
[1717610731545,0.35741893,71626.0,71625.0,0.002]
[1717610732807,0.35741893,71626.0,71624.0,0.21707573]
[1717610733225,0.35741893,71626.0,71625.0,0.001]
[1717610733875,0.35741893,71626.0,71624.0,0.21907573]
[1717610734097,0.35741893,71626.0,71624.0,0.21807573]
[1717610734526,0.35741893,71626.0,71624.0,0.22007573]
[1717610734733,0.35741893,71626.0,71624.0,0.21707573]
[1717610734949,0.35741893,71626.0,71625.0,0.001]
[1717610736492,0.35741893,71626.0,71624.0,0.21907573]
[1717610736750,0.35741893,71626.0,71624.0,0.21707573]
[1717610736953,0.35741893,71626.0,71625.0,0.002]
[1717610737397,0.35741893,71626.0,71624.0,0.21707573]
[1717610737576,0.35741893,71626.0,71625.0,0.002]
[1717610738038,0.35741893,71626.0,71624.0,0.21807573]
[1717610738262,0.35741893,71626.0,71624.0,0.21707573]
[1717610739872,0.35741893,71626.0,71624.0,0.21807573]
[1717610740095,0.35741893,71626.0,71625.0,0.002]
[1717610740306,0.35741893,71626.0,71624.0,0.21807573]
[1717610740655,0.35741893,71626.0,71624.0,0.22007573]
[1717610740857,0.35741893,71626.0,71624.0,0.21707573]
[1717610741270,0.35741893,71626.0,71625.0,0.003]
[1717610742756,0.35741893,71626.0,71625.0,0.001]
[1717610742925,0.35741893,71626.0,71624.0,0.21803273]
[1717610743142,0.35741893,71626.0,71624.0,0.22003273]
[1717610743353,0.35741893,71626.0,71624.0,0.21903273]
[1717610743831,0.35741893,71626.0,71625.0,0.002]
[1717610744039,0.35741893,71626.0,71624.0,0.21903273]
[1717610744456,0.35741893,71626.0,71624.0,0.22103273]
[1717610744641,0.35741893,71626.0,71624.0,0.22003273]
[1717610745936,0.35741893,71626.0,71624.0,0.21803273]
[1717610746290,0.35741893,71626.0,71625.0,0.002]
[1717610746525,0.39914051,71626.0,71624.0,0.21803273]
[1717610746679,0.39914051,71626.0,71625.0,0.001]
[1717610747669,0.39914051,71626.0,71625.0,0.002]
[1717610748583,0.39914051,71626.0,71625.0,0.003]
[1717610748999,0.35741893,71626.0,71625.0,0.003]
[1717610749149,0.3991836,71626.0,71625.0,0.003]
[1717610749983,0.04176467,71626.0,71625.0,0.51539707]
[1717610750191,0.04263467,71632.0,71628.0,0.371808]
[1717610750397,0.00087,71632.0,71630.0,0.2322]
[1717610751040,0.00087,71632.0,71631.0,0.159604]
[1717610751266,0.00087,71632.0,71631.0,0.51238507]
[1717610752568,0.00087,71632.0,71631.0,0.2322]
[1717610753376,0.00087,71632.0,71631.0,0.372804]
[1717610753812,0.00087,71632.0,71631.0,0.2332]
[1717610754020,0.00087,71632.0,71631.0,0.2342]
[1717610754220,0.00087,71632.0,71631.0,0.2362]
[1717610754526,0.00087,71632.0,71631.0,0.35378107]
[1717610754730,0.00087,71632.0,71631.0,0.49338507]
[1717610754883,0.00087,71632.0,71631.0,0.49438507]
[1717610755084,0.00087,71632.0,71631.0,0.49538507]
[1717610755486,0.00087,71632.0,71631.0,0.374804]
[1717610755922,0.00087,71632.0,71631.0,0.49538507]
[1717610756540,0.00087,71632.0,71631.0,0.49338507]
[1717610757140,0.00087,71632.0,71631.0,0.49238507]
[1717610757373,0.00087,71632.0,71631.0,0.49538507]
[1717610757928,0.00087,71632.0,71631.0,0.49438507]
[1717610758343,0.00087,71632.0,71631.0,0.49538507]
[1717610759941,0.00087,71632.0,71631.0,0.51538507]
[1717610760343,0.00087,71632.0,71631.0,0.37578107]
[1717610760928,0.00087,71632.0,71631.0,0.51538507]
[1717610761136,0.00087,71632.0,71631.0,0.61538507]
[1717610761368,0.00087,71632.0,71631.0,0.89459307]
[1717610761572,0.00087,71632.0,71631.0,1.17380107]
[1717610761742,0.00087,71632.0,71631.0,0.89459307]
[1717610765051,0.00087,71632.0,71631.0,0.474804]
[1717610765273,0.00087,71632.0,71631.0,0.59538507]
[1717610765446,0.00087,71632.0,71631.0,0.61538507]
[1717610765653,0.00087,71632.0,71631.0,0.59538507]
[1717610766075,0.00087,71632.0,71631.0,0.474804]
[1717610766717,0.00087,71632.0,71631.0,0.59538507]
[1717610766949,0.00087,71632.0,71631.0,0.474804]
[1717610767588,0.00087,71632.0,71631.0,0.59538507]
[1717610768260,0.00087,71632.0,71631.0,0.474804]
[1717610771636,0.00087,71632.0,71631.0,0.59538507]
[1717610774355,0.00087,71632.0,71631.0,0.61538507]
[1717610774585,0.00087,71632.0,71631.0,0.003]
[1717610774586,0.19087,71632.0,71631.0,0.003]
[1717610774803,0.34317,71632.0,71631.0,0.003]
[1717610775216,0.48758893,71632.0,71631.0,0.003]
[1717610775427,0.64556929,71632.0,71631.0,0.003]
[1717610775615,0.89219793,71632.0,71631.0,0.003]
[1717610775844,0.89219793,71632.0,71631.0,0.002]
[1717610775994,1.11527006,71632.0,71631.0,0.002]
[1717610776190,1.11527006,71632.0,71631.0,0.003]
[1717610776624,1.03179993,71632.0,71631.0,0.002]
[1717610776986,1.03179993,71632.0,71624.0,0.21803273]
[1717610776987,0.97569021,71632.0,71624.0,0.21803273]
[1717610777242,0.36617,71632.0,71631.0,0.003]
[1717610777364,0.83128084,71632.0,71631.0,0.001]
[1717610777558,0.42878973,71632.0,71624.0,0.21803273]
[1717610777785,0.06474445,71631.0,71624.0,0.21803273]
[1717610777986,0.06474445,71631.0,71625.0,0.1582]
[1717610778191,0.023,71631.0,71625.0,0.1582]
[1717610778388,0.14441893,71630.0,71625.0,0.1582]
[1717610778871,0.14441893,71630.0,71624.0,0.21803273]
[1717610779090,0.023,71629.0,71624.0,0.21803273]
[1717610779303,0.14441893,71628.0,71624.0,0.21803273]
[1717610779520,0.023,71627.0,71624.0,0.21803273]
[1717610779726,0.06261973,71625.0,71624.0,0.21803273]
[1717610779932,0.30242297,71625.0,71624.0,0.21803273]
[1717610780348,0.36965466,71625.0,71624.0,0.21803273]
[1717610780766,0.36965466,71625.0,71624.0,0.21903273]
[1717610781164,0.36965466,71625.0,71624.0,0.21803273]
[1717610781385,0.36965466,71625.0,71624.0,0.22003273]
[1717610781628,0.36965466,71625.0,71624.0,0.21903273]
[1717610782043,0.36965466,71625.0,71624.0,0.22103273]
[1717610783087,0.30703493,71625.0,71624.0,0.22103273]
[1717610783313,0.46291481,71625.0,71624.0,0.22103273]
[1717610783524,0.6886839,71625.0,71624.0,0.22003273]
[1717610783732,0.30703493,71625.0,71624.0,0.22003273]
[1717610783942,0.16741893,71625.0,71624.0,0.22103273]
[1717610786166,0.20915492,71625.0,71624.0,0.22103273]
[1717610787297,0.29201221,71627.0,71625.0,0.14058107]
[1717610787298,0.04173599,71627.0,71625.0,0.14058107]
[1717610787500,0.04173599,71630.0,71629.0,0.21628107]
[1717610787714,0.04173599,71631.0,71630.0,0.27538107]
[1717610787924,0.00087,71632.0,71631.0,0.12058107]
[1717610788143,0.00087,71632.0,71624.0,0.22103273]
[1717610788364,0.33528893,71632.0,71624.0,0.21803273]
[1717610788599,0.33528893,71632.0,71626.0,0.12058107]
[1717610788600,0.19087,71632.0,71626.0,0.12058107]
[1717610788813,0.00087,71632.0,71629.0,0.002]
[1717610789286,0.00087,71632.0,71630.0,0.12058107]
[1717610789503,0.00087,71632.0,71631.0,0.2305]
[1717610791245,0.00087,71632.0,71631.0,0.2315]
[1717610792261,0.00087,71632.0,71631.0,0.2325]
[1717610793229,0.00087,71632.0,71631.0,0.2315]
[1717610793431,0.00087,71632.0,71631.0,0.2305]
[1717610793645,0.00087,71632.0,71631.0,0.2315]
[1717610793849,0.330472,71632.0,71631.0,0.003]
[1717610794066,0.39308421,71632.0,71626.0,0.1559]
[1717610794273,0.04174166,71630.0,71626.0,0.1559]
[1717610794478,0.04174166,71630.0,71624.0,0.45153273]
[1717610794684,0.330472,71632.0,71624.0,0.45153273]
[1717610794685,0.23261166,71632.0,71624.0,0.45153273]
[1717610794901,0.023,71631.0,71624.0,0.45153273]
[1717610795127,0.389016,71625.0,71624.0,0.21803273]
[1717610795356,0.54153328,71625.0,71624.0,0.21803273]
[1717610795574,0.77001552,71625.0,71624.0,0.21803273]
[1717610795798,0.40468059,71625.0,71624.0,0.21803273]
[1717610796266,0.023,71625.0,71624.0,0.21803273]
[1717610796685,0.06474539,71625.0,71624.0,0.21803273]
[1717610797098,0.08561809,71625.0,71624.0,0.21803273]
[1717610797298,0.023,71625.0,71624.0,0.21803273]
[1717610797525,0.23003702,71625.0,71624.0,0.22003273]
[1717610797750,0.31971893,71625.0,71624.0,0.21803273]
[1717610797976,0.94802048,71625.0,71624.0,0.21903273]
[1717610798180,1.19890668,71625.0,71624.0,0.22103273]
[1717610798397,1.48848503,71625.0,71624.0,0.21803273]
[1717610798608,2.20076605,71625.0,71624.0,0.21803273]
[1717610798834,0.60903793,71623.0,71622.0,0.009504]
[1717610799072,1.59998803,71623.0,71622.0,0.009504]
[1717610799277,2.03303705,71623.0,71622.0,0.009504]
[1717610799497,1.72515995,71623.0,71622.0,0.009504]
[1717610799721,1.54574102,71623.0,71622.0,0.009504]
[1717610799950,1.81384102,71623.0,71622.0,0.009504]
[1717610800359,1.39909075,71623.0,71622.0,0.009504]
[1717610800582,1.48251558,71623.0,71622.0,0.009504]
[1717610800806,1.39909075,71623.0,71622.0,0.009504]
[1717610801035,1.13099075,71623.0,71622.0,0.009504]
[1717610801264,1.47850968,71623.0,71622.0,0.009504]
[1717610801495,1.56992381,71623.0,71622.0,0.010504]
[1717610801733,1.693407,71623.0,71622.0,0.010504]
[1717610801964,2.20851038,71623.0,71622.0,0.010504]
[1717610802195,1.96339251,71623.0,71622.0,0.010504]
[1717610802411,2.06339251,71623.0,71622.0,0.010504]
[1717610803289,1.78415351,71623.0,71622.0,0.010504]
[1717610803520,1.49456448,71623.0,71622.0,0.010504]
[1717610803949,1.39456448,71623.0,71622.0,0.010504]
[1717610804159,1.704729,71623.0,71622.0,0.010504]
[1717610804365,1.80894602,71623.0,71622.0,0.010504]
[1717610804788,1.51936257,71623.0,71622.0,0.010504]
[1717610805022,1.74389937,71623.0,71622.0,0.010504]
[1717610805225,1.91892135,71623.0,71622.0,0.010504]
[1717610805434,2.20850611,71623.0,71622.0,0.010504]
[1717610807945,2.12908718,71623.0,71622.0,0.010504]
[1717610808163,2.20850611,71623.0,71622.0,0.010504]
[1717610808369,2.10850611,71623.0,71622.0,0.010504]
[1717610808583,2.20850611,71623.0,71622.0,0.010504]
[1717610809652,2.22553984,71623.0,71622.0,0.010504]
[1717610810066,2.22554357,71623.0,71622.0,0.010504]
[1717610811115,1.72176777,71623.0,71622.0,0.010504]
[1717610811329,1.27988301,71623.0,71622.0,0.010504]
[1717610811534,1.17988301,71623.0,71622.0,0.010504]
[1717610811986,1.09512681,71623.0,71622.0,0.010504]
[1717610812210,1.11178301,71623.0,71622.0,0.010504]
[1717610812634,1.19512681,71623.0,71622.0,0.010504]
[1717610813498,1.34024468,71623.0,71622.0,0.010504]
[1717610813709,1.11178301,71623.0,71622.0,0.010504]
[1717610814543,1.01178301,71623.0,71622.0,0.010504]
[1717610814956,1.11178301,71623.0,71622.0,0.010504]
[1717610815377,1.01178301,71623.0,71622.0,0.010504]
[1717610816175,1.09515507,71623.0,71622.0,0.010504]
[1717610816374,1.11178301,71623.0,71622.0,0.010504]
[1717610816762,3.11178301,71623.0,71622.0,0.010504]
[1717610817178,3.19538325,71623.0,71622.0,0.010504]
[1717610817385,3.77204012,71623.0,71622.0,0.010504]
[1717610817591,3.76785881,71623.0,71622.0,0.010504]
[1717610817799,4.41458363,71623.0,71622.0,0.010504]
[1717610818228,4.66013494,71623.0,71622.0,0.010504]
[1717610818440,4.80693494,71623.0,71622.0,0.010504]
[1717610818663,4.90693494,71623.0,71622.0,0.010504]
[1717610818873,0.71904993,71617.0,71616.0,0.009504]
[1717610819089,1.80777102,71617.0,71616.0,0.009504]
[1717610819574,1.80777102,71617.0,71616.0,0.250704]
[1717610819575,1.4783471,71617.0,71616.0,0.250704]
[1717610819779,1.18876128,71617.0,71616.0,0.250704]
[1717610820180,1.08976128,71617.0,71616.0,0.250704]
[1717610820810,0.78045014,71617.0,71616.0,0.250704]
[1717610821016,1.08975828,71617.0,71616.0,0.250704]
[1717610821637,1.17320094,71617.0,71616.0,0.250704]
[1717610822238,1.1732033,71617.0,71616.0,0.250704]
[1717610822449,1.16917935,71617.0,71616.0,0.009504]
[1717610822669,0.85986588,71617.0,71616.0,0.009504]
[1717610822877,1.19407638,71617.0,71616.0,0.009504]
[1717610823182,0.28039601,71617.0,71616.0,0.009504]
[1717610823338,0.001,71617.0,71616.0,0.250704]
[1717610824181,2.25258006,71623.0,71619.0,0.2412]
[1717610824182,2.0,71623.0,71619.0,0.2412]
[1717610824403,2.0,71623.0,71621.0,0.0761]
[1717610824610,2.0,71623.0,71622.0,0.1651]
[1717610825262,2.0,71623.0,71622.0,0.2412]
[1717610825474,2.0,71623.0,71622.0,0.38178107]
[1717610825921,2.0,71623.0,71622.0,0.52140207]
[1717610826354,2.0,71623.0,71622.0,0.52240207]
[1717610826565,2.0,71623.0,71622.0,0.2422]
[1717610827428,2.30703793,71623.0,71622.0,0.2422]
[1717610827638,2.28152349,71623.0,71622.0,0.2422]
[1717610828071,2.28152349,71623.0,71622.0,0.381821]
[1717610828072,2.0,71623.0,71622.0,0.381821]
[1717610828294,2.0,71623.0,71622.0,0.2422]
[1717610828497,2.0,71623.0,71622.0,0.2432]
[1717610828884,2.0,71623.0,71622.0,0.2422]
[1717610829315,2.0,71623.0,71622.0,0.2432]
[1717610829556,2.0,71623.0,71622.0,0.2422]
[1717610829949,2.0,71623.0,71622.0,0.2432]
[1717610830123,2.0,71623.0,71622.0,0.2422]
[1717610830536,2.0,71623.0,71622.0,0.38378107]
[1717610831205,2.0,71623.0,71622.0,0.38278107]
[1717610831635,2.0,71623.0,71622.0,0.38378107]
[1717610832217,2.0,71623.0,71622.0,0.2432]
[1717610832422,2.0,71623.0,71622.0,0.38378107]
[1717610833524,2.0,71623.0,71622.0,0.2432]
[1717610834808,2.023,71623.0,71622.0,0.2432]
[1717610835834,2.16741893,71623.0,71622.0,0.1651]
[1717610836056,0.139629,71618.0,71616.0,0.009504]
[1717610836279,0.39810152,71617.0,71616.0,0.009504]
[1717610836513,0.94471512,71617.0,71616.0,0.009504]
[1717610836732,1.44053656,71617.0,71616.0,0.009504]
[1717610836945,1.62587947,71617.0,71616.0,0.009504]
[1717610837597,1.45777947,71617.0,71616.0,0.009504]
[1717610837854,1.62416054,71617.0,71616.0,0.009504]
[1717610838078,1.62416054,71617.0,71616.0,0.010504]
[1717610838079,1.62419645,71617.0,71616.0,0.010504]
[1717610838287,1.54649645,71617.0,71616.0,0.010504]
[1717610838607,1.25688559,71617.0,71616.0,0.011504]
[1717610838909,1.25688559,71617.0,71616.0,0.009504]
[1717610839129,1.08878559,71617.0,71616.0,0.009504]
[1717610840458,1.08978559,71617.0,71616.0,0.009504]
[1717610840664,1.19413929,71617.0,71616.0,0.009504]
[1717610841498,1.45881323,71617.0,71616.0,0.009504]
[1717610842464,1.83807623,71617.0,71616.0,0.009504]
[1717610842699,0.36941893,71614.0,71600.0,0.009493]
[1717610842902,1.62710342,71614.0,71600.0,0.009493]
[1717610843111,2.15377533,71614.0,71600.0,0.009493]
[1717610843286,2.43305033,71614.0,71600.0,0.009493]
[1717610843631,2.06018556,71614.0,71600.0,0.009493]
[1717610843835,2.22828556,71614.0,71600.0,0.009493]
[1717610844039,2.22928556,71614.0,71600.0,0.009493]
[1717610844242,1.92145158,71614.0,71600.0,0.009493]
[1717610844443,1.92045158,71614.0,71600.0,0.009493]
[1717610844851,1.92545158,71614.0,71600.0,0.009493]
[1717610845051,2.23332776,71614.0,71600.0,0.009493]
[1717610845298,2.23732776,71614.0,71600.0,0.009493]
[1717610845458,2.51660276,71614.0,71600.0,0.009493]
[1717610846071,2.61215176,71614.0,71600.0,0.009493]
[1717610846288,2.66172063,71614.0,71600.0,0.009493]
[1717610846516,2.75727096,71614.0,71600.0,0.009493]
[1717610846969,3.19037096,71614.0,71600.0,0.009493]
[1717610847140,1.37766393,71608.0,71600.0,0.009493]
[1717610847357,2.66571466,71608.0,71600.0,0.009493]
[1717610847519,3.06424165,71608.0,71600.0,0.009493]
[1717610847918,2.96424165,71608.0,71600.0,0.009493]
[1717610848131,3.57263965,71608.0,71600.0,0.009493]